{"text_format":"1","workbook":"xlsx","n_sheets":3,"sheets":["לוח מחוונים","רשימת ציוד","נתוני ציר"],"not_rendered":{"charts":0,"images":0,"macros":1,"external_links":0,"defined_names":25,"comments":0,"pivot_tables":1},"unopened":[],"bounds":{"document_bytes":16777216,"sheet_cells":100000,"rows_first":2000,"rows_last":500,"rows_between":2000,"halvings":0,"cell_chars":16384,"cell_head_chars":4096},"cells_cut":0,"cells_raw":0,"read":"whole","date_system":"1900"}

{"sheet":"לוח מחוונים","index":0,"n_rows":20,"n_cols":6,"rows_kept":20,"cut":false,"hidden":false,"merged":[]}
[null,"לוח מחוונים"]
[]
[]
[null,null,null,null,null,"ספירה כוללת"]
[null,null,null,null,null,{"$f":"GETPIVOTDATA(\"ספירה\",'נתוני ציר'!$B$11)","v":3}]
[]
[null,null,null,null,null,"עלות חודשית כוללת"]
[null,null,null,null,null,{"$f":"GETPIVOTDATA(\"סכום של עלות חודשית כוללת\",'נתוני ציר'!$B$11)","v":1766.8615235056877}]
[]
[null,null,null,null,null,"עלויות תפעול"]
[null,null,null,null,null,{"$f":"GETPIVOTDATA(\"עלויות תפעול\",'נתוני ציר'!$B$11)","v":605}]
[]
[null,null,null,null,null,"פחת חודשי"]
[null,null,null,null,null,{"$f":"GETPIVOTDATA(\"פחת חודשי\",'נתוני ציר'!$B$11)","v":659.72222222222217}]
[]
[null,null,null,null,null,"סכום תשלום"]
[null,null,null,null,null,{"$f":"GETPIVOTDATA(\"סכום של תשלום חודשי\",'נתוני ציר'!$B$11)","v":1161.8615235056877}]
[]
[null,null,null,null,null,"ערך נוכחי"]
[null,null,null,null,null,{"$f":"GETPIVOTDATA(\"ערך נוכחי \",'נתוני ציר'!$B$11)","v":36947.031963470319}]

{"sheet":"רשימת ציוד","index":1,"n_rows":10,"n_cols":20,"rows_kept":10,"cut":false,"hidden":false,"merged":[[2,1,2,3]]}
[null,"רשימת ציוד"]
[]
[null,"סמן כאשר מספר התשלומים החודשיים שנותרו הוא פחות מ: ",null,null,"‎20"]
[]
[null,"נכס או\nמספר סידורי","תיאור פריט\n(יצרן ודגם)","מיקום","מצב","ספק","שנות שירות\nשנותרו ","ערך ראשוני","מקדמה","תאריך רכישה\nאו השכרה","תקופת הלוואה\n(שנים)","ריבית על הלוואה","עלויות תפעול\nחודשיות","ערך צפוי בסוף תקופת החוזה","תשלומים חודשיים שנותרו","תשלום חודשי","עלות\nחודשית כוללת","פחת שנתי\n(קו ישר)","פחת חודשי\n(קו ישר)","ערך נוכחי"]
[null,123,"יצרן דגם 1","סניף ראשי","טוב","מקומי",5,30000,5000,"2011-01-15",4,0.1,200,20000,{"$f":"IFERROR(SUMPRODUCT(--(DAY(ROW(OFFSET($A$1,,,DATE(YEAR(Equipment[[#This Row],[תאריך רכישה\nאו השכרה]])+Equipment[[#This Row],[תקופת הלוואה\n(שנים)]],MONTH(Equipment[[#This Row],[תאריך רכישה\nאו השכרה]])-1,DAY(Equipment[[#This Row],[תאריך רכישה\nאו השכרה]]))-TODAY()))+DATE(YEAR(Equipment[[#This Row],[תאריך רכישה\nאו השכרה]])+Equipment[[#This Row],[תקופת הלוואה\n(שנים)]],MONTH(Equipment[[#This Row],[תאריך רכישה\nאו השכרה]]),DAY(Equipment[[#This Row],[תאריך רכישה\nאו השכרה]]))-1)=DAY(Equipment[[#This Row],[תאריך רכישה\nאו השכרה]]))),0)","v":24},{"$f":"IFERROR(-(Equipment[ערך ראשוני]>0)*(Equipment[ערך ראשוני]<>Equipment[מקדמה])*PMT(Equipment[ריבית על הלוואה]/MonthsInYear,Equipment[תקופת הלוואה\n(שנים)]*MonthsInYear,Equipment[ערך ראשוני]-Equipment[מקדמה]),0)","v":634.06458586867973},{"$f":"Equipment[[#This Row],[תשלום חודשי]]+Equipment[עלויות תפעול\nחודשיות]","v":834.06458586867973},{"$f":"IFERROR((Equipment[ערך ראשוני]>0)*SLN(Equipment[ערך ראשוני],Equipment[ערך צפוי בסוף תקופת החוזה],Equipment[תקופת הלוואה\n(שנים)]),0)","v":2500},{"$f":"IFERROR(Equipment[פחת שנתי\n(קו ישר)]/MonthsInYear,0)","v":208.33333333333334},{"$f":"IFERROR(Equipment[ערך ראשוני]-(Equipment[פחת שנתי\n(קו ישר)]*((TODAY()-Equipment[תאריך רכישה\nאו השכרה])/DaysInYear)),0)","v":25178.082191780821}]
[null,234,"יצרן דגם 2","סניף ראשי","טוב","מקומי",4,12500,1500,"2011-03-10",3,0.08,120,3000,{"$f":"IFERROR(SUMPRODUCT(--(DAY(ROW(OFFSET($A$1,,,DATE(YEAR(Equipment[[#This Row],[תאריך רכישה\nאו השכרה]])+Equipment[[#This Row],[תקופת הלוואה\n(שנים)]],MONTH(Equipment[[#This Row],[תאריך רכישה\nאו השכרה]])-1,DAY(Equipment[[#This Row],[תאריך רכישה\nאו השכרה]]))-TODAY()))+DATE(YEAR(Equipment[[#This Row],[תאריך רכישה\nאו השכרה]])+Equipment[[#This Row],[תקופת הלוואה\n(שנים)]],MONTH(Equipment[[#This Row],[תאריך רכישה\nאו השכרה]]),DAY(Equipment[[#This Row],[תאריך רכישה\nאו השכרה]]))-1)=DAY(Equipment[[#This Row],[תאריך רכישה\nאו השכרה]]))),0)","v":14},{"$f":"IFERROR(-(Equipment[ערך ראשוני]>0)*(Equipment[ערך ראשוני]<>Equipment[מקדמה])*PMT(Equipment[ריבית על הלוואה]/MonthsInYear,Equipment[תקופת הלוואה\n(שנים)]*MonthsInYear,Equipment[ערך ראשוני]-Equipment[מקדמה]),0)","v":344.7000200757393},{"$f":"Equipment[[#This Row],[תשלום חודשי]]+Equipment[עלויות תפעול\nחודשיות]","v":464.7000200757393},{"$f":"IFERROR((Equipment[ערך ראשוני]>0)*SLN(Equipment[ערך ראשוני],Equipment[ערך צפוי בסוף תקופת החוזה],Equipment[תקופת הלוואה\n(שנים)]),0)","v":3166.6666666666665},{"$f":"IFERROR(Equipment[פחת שנתי\n(קו ישר)]/MonthsInYear,0)","v":263.88888888888886},{"$f":"IFERROR(Equipment[ערך ראשוני]-(Equipment[פחת שנתי\n(קו ישר)]*((TODAY()-Equipment[תאריך רכישה\nאו השכרה])/DaysInYear)),0)","v":6860.7305936073062}]
[null,345,"יצרן דגם 2","סניף 1","סביר","אחר",1,10000,2500,"2010-09-15",4,0.08,285,1000,{"$f":"IFERROR(SUMPRODUCT(--(DAY(ROW(OFFSET($A$1,,,DATE(YEAR(Equipment[[#This Row],[תאריך רכישה\nאו השכרה]])+Equipment[[#This Row],[תקופת הלוואה\n(שנים)]],MONTH(Equipment[[#This Row],[תאריך רכישה\nאו השכרה]])-1,DAY(Equipment[[#This Row],[תאריך רכישה\nאו השכרה]]))-TODAY()))+DATE(YEAR(Equipment[[#This Row],[תאריך רכישה\nאו השכרה]])+Equipment[[#This Row],[תקופת הלוואה\n(שנים)]],MONTH(Equipment[[#This Row],[תאריך רכישה\nאו השכרה]]),DAY(Equipment[[#This Row],[תאריך רכישה\nאו השכרה]]))-1)=DAY(Equipment[[#This Row],[תאריך רכישה\nאו השכרה]]))),0)","v":20},{"$f":"IFERROR(-(Equipment[ערך ראשוני]>0)*(Equipment[ערך ראשוני]<>Equipment[מקדמה])*PMT(Equipment[ריבית על הלוואה]/MonthsInYear,Equipment[תקופת הלוואה\n(שנים)]*MonthsInYear,Equipment[ערך ראשוני]-Equipment[מקדמה]),0)","v":183.09691756126861},{"$f":"Equipment[[#This Row],[תשלום חודשי]]+Equipment[עלויות תפעול\nחודשיות]","v":468.09691756126858},{"$f":"IFERROR((Equipment[ערך ראשוני]>0)*SLN(Equipment[ערך ראשוני],Equipment[ערך צפוי בסוף תקופת החוזה],Equipment[תקופת הלוואה\n(שנים)]),0)","v":2250},{"$f":"IFERROR(Equipment[פחת שנתי\n(קו ישר)]/MonthsInYear,0)","v":187.5},{"$f":"IFERROR(Equipment[ערך ראשוני]-(Equipment[פחת שנתי\n(קו ישר)]*((TODAY()-Equipment[תאריך רכישה\nאו השכרה])/DaysInYear)),0)","v":4908.2191780821922}]
[null,"סה\"כ",null,null,null,null,{"$f":"SUBTOTAL(101,Equipment[שנות שירות\nשנותרו ])","v":3.3333333333333335},{"$f":"SUBTOTAL(109,Equipment[ערך ראשוני])","v":52500},{"$f":"SUBTOTAL(109,Equipment[מקדמה])","v":9000},null,{"$f":"SUBTOTAL(101,Equipment[תקופת הלוואה\n(שנים)])","v":3.6666666666666665},{"$f":"SUBTOTAL(101,Equipment[ריבית על הלוואה])","v":8.666666666666667E-2},{"$f":"SUBTOTAL(109,Equipment[עלויות תפעול\nחודשיות])","v":605},{"$f":"SUBTOTAL(109,Equipment[ערך צפוי בסוף תקופת החוזה])","v":24000},{"$f":"SUBTOTAL(101,Equipment[תשלומים חודשיים שנותרו])","v":19.333333333333332},{"$f":"SUBTOTAL(107,Equipment[תשלום חודשי])","v":228.48021524027803},{"$f":"SUBTOTAL(109,Equipment[עלות\nחודשית כוללת])","v":1766.8615235056877},{"$f":"SUBTOTAL(101,Equipment[פחת שנתי\n(קו ישר)])","v":2638.8888888888887},{"$f":"SUBTOTAL(101,Equipment[פחת חודשי\n(קו ישר)])","v":219.90740740740739},{"$f":"SUBTOTAL(109,Equipment[ערך נוכחי])","v":36947.031963470319}]
[null,"סך הכל"]

{"sheet":"נתוני ציר","index":2,"n_rows":15,"n_cols":8,"rows_kept":15,"cut":false,"hidden":false,"merged":[]}
[null,"נתוני ציר"]
[null,"גיליון זה צריך להישאר מוסתר. שינוי מבנה של PivotTable בגיליון זה עלול להוביל לשגיאות בכלי הפריסה של לוח המחוונים."]
[]
[null,"תיאור פריט (יצרן ודגם)","(הכל)"]
[null,"מיקום","(הכל)"]
[null,"מצב","(הכל)"]
[null,"ספק","(הכל)"]
[null,"שנות שירות שנותרו","(הכל)"]
[null,"תקופת הלוואה (שנים)","(הכל)"]
[]
[null,"תוויות שורה","ספירה","עלויות תפעול","סכום של תשלום חודשי","סכום של עלות חודשית כוללת","פחת חודשי","ערך נוכחי "]
[null,123,1,200,634.06458586867973,834.06458586867973,208.33333333333334,25178.082191780821]
[null,234,1,120,344.7000200757393,464.7000200757393,263.88888888888886,6860.7305936073062]
[null,345,1,285,183.09691756126861,468.09691756126858,187.5,4908.2191780821922]
[null,"סכום כולל",3,605,1161.8615235056877,1766.8615235056877,659.72222222222217,36947.031963470319]